bitfinex-derivatives/quotes_SOLF0:USTF0_20260226
["timestamp","ask_amount","ask_price","bid_price","bid_amount"]
[1772111823199,10.2663,87.663,87.621,3.85899782]
[1772111823495,3.67247055,87.663,87.621,3.85899782]
[1772111823797,3.00171753,87.66,87.621,3.85899782]
[1772111823998,3.67247055,87.659,87.616,10.2717]
[1772111824887,3.67247055,87.659,87.607,3.85899782]
[1772111824888,3.67247055,87.659,87.611,3.85899782]
[1772111825090,6.67418808,87.67,87.621,3.85899782]
[1772111825394,3.67247055,87.669,87.621,3.85899782]
[1772111826795,3.67247055,87.669,87.631,3.85899782]
[1772111828099,3.67247055,87.669,87.634,10.2696]
[1772111831102,3.67247055,87.669,87.631,3.85899782]
[1772111833398,10.2658,87.667,87.631,3.85899782]
[1772111834603,10.2658,87.667,87.62,3.00171753]
[1772111834604,3.67247055,87.659,87.612,3.85899782]
[1772111836101,10.2678,87.65,87.612,3.85899782]
[1772111836503,3.67247055,87.638,87.596,3.85899782]
[1772111836709,3.67247055,87.652,87.601,3.85899782]
[1772111837908,10.2677,87.651,87.607,10.2728]
[1772111838496,10.2668,87.658,87.619,3.85899782]
[1772111839405,13.93847055,87.665,87.621,10.2711]
[1772111839606,13.93847055,87.665,87.619,3.85899782]
[1772111839803,13.93847055,87.665,87.621,3.85899782]
[1772111839996,3.67247055,87.664,87.621,3.85899782]
[1772111840997,3.67247055,87.664,87.627,10.2704]
[1772111842004,3.00171753,87.67,87.621,3.85899782]
[1772111842005,3.67247055,87.662,87.621,3.85899782]
[1772111842200,3.67247055,87.659,87.619,10.2713]
[1772111842611,3.67247055,87.656,87.612,10.2721]
[1772111843903,3.67247055,87.654,87.612,10.2721]
[1772111844913,13.93987055,87.653,87.612,10.2721]
[1772111845602,3.67247055,87.652,87.612,10.2721]
[1772111847509,10.2678,87.65,87.612,10.2721]
[1772111849611,3.63667308,87.67,87.631,3.66208125]
[1772111849811,3.63667308,87.67,87.62,3.00171753]
[1772111849812,3.63667308,87.659,87.62,3.66208125]
[1772111850111,10.2674,87.653,87.62,3.66208125]
[1772111851207,3.63667308,87.652,87.613,10.272]
[1772111851407,3.63667308,87.649,87.607,3.66208125]
[1772111852510,10.2682,87.647,87.609,10.2725]
[1772111853102,3.63667308,87.649,87.609,10.2725]
[1772111853302,3.63667308,87.649,87.614,10.2719]
[1772111854104,10.2687,87.642,87.607,3.66208125]
[1772111854309,13.90537308,87.642,87.607,3.66208125]
[1772111855110,10.269,87.64,87.607,3.66208125]
[1772111855413,3.63667308,87.639,87.595,3.66208125]
[1772111856915,10.2699,87.632,87.595,3.66208125]
[1772111857515,13.84655508,87.632,87.595,3.66208125]
[1772111857712,3.57665508,87.632,87.595,3.66208125]
[1772111859013,3.57665508,87.632,87.602,10.2733]
[1772111859513,10.61356497,87.673,87.608,3.51173914]
[1772111859514,3.57665508,87.644,87.608,3.51173914]
[1772111859816,10.2682,87.647,87.608,3.51173914]
[1772111860917,10.2682,87.647,87.609,10.2725]
[1772111861421,3.57665508,87.657,87.614,3.51173914]
[1772111861620,3.57665508,87.669,87.614,3.51173914]
[1772111862812,2.9999934,87.67,87.619,10.2713]
[1772111862813,10.2672,87.655,87.619,10.2713]
[1772111863016,13.84385508,87.655,87.619,10.2713]
[1772111863824,3.57665508,87.649,87.602,3.51173914]
[1772111865924,3.57665508,87.649,87.616,10.2717]
[1772111866626,3.57665508,87.649,87.609,10.2725]
[1772111867219,10.2687,87.642,87.602,3.51173914]
[1772111868525,10.2687,87.642,87.603,10.2732]
[1772111868726,10.2687,87.642,87.604,3.51173914]
[1772111869324,13.84465508,87.648,87.605,10.2729]
[1772111869731,2.9999934,87.66,87.605,3.51173914]
[1772111870122,6.57664848,87.66,87.611,3.51173914]
[1772111870527,3.57665508,87.659,87.611,3.51173914]
[1772111870929,10.2672,87.656,87.618,10.2714]
[1772111871130,13.84385508,87.656,87.618,10.2714]
[1772111871330,3.57665508,87.655,87.618,10.2714]
[1772111871526,3.82153016,87.652,87.611,13.78403914]
[1772111871831,3.82153016,87.652,87.611,10.2723]
[1772111872920,10.2679,87.65,87.611,10.2723]
[1772111873330,14.08943016,87.65,87.611,10.2723]
[1772111873925,3.82153016,87.646,87.611,10.2723]
[1772111874725,3.82153016,87.643,87.598,3.60740663]
[1772111875030,3.82153016,87.639,87.581,3.60740663]
[1772111875330,3.82153016,87.639,87.594,10.2743]
[1772111876032,10.2681,87.648,87.607,3.68303852]
[1772111878940,3.82153016,87.652,87.611,3.68303852]
[1772111880032,3.82153016,87.652,87.614,3.68303852]
[1772111880637,3.5881007,87.65,87.6,2.9999934]
[1772111880937,3.5881007,87.65,87.6,6.68303192]
[1772111881136,10.2687,87.643,87.603,3.68303852]
[1772111881326,3.5881007,87.65,87.603,3.68303852]
[1772111881528,2.9999934,87.66,87.611,3.68303852]
[1772111881836,20.524,87.7,87.555,159.8931]
[1772111881837,3.5881007,87.675,87.63,2.9999934]
[1772111882232,3.5881007,87.672,87.621,3.68303852]
[1772111882433,3.5881007,87.659,87.589,3.68303852]
[1772111882638,3.5881007,87.659,87.611,3.68303852]
[1772111883941,10.2671,87.656,87.613,10.272]
[1772111884141,13.8552007,87.656,87.613,10.272]
[1772111885736,3.5881007,87.655,87.613,10.272]
[1772111886635,10.2675,87.653,87.613,10.272]
[1772111886835,13.8556007,87.653,87.613,10.272]
[1772111887141,3.5881007,87.649,87.599,3.68303852]
[1772111887338,3.5881007,87.639,87.599,3.68303852]
[1772111887528,3.5881007,87.637,87.599,3.68303852]
[1772111888937,13.8577007,87.635,87.599,3.68303852]
[1772111889337,3.5881007,87.634,87.597,10.2739]
[1772111892642,10.2698,87.633,87.59,16.95783192]
[1772111893148,13.8579007,87.633,87.59,16.95783192]
[1772111893346,13.8579007,87.633,87.593,10.2744]
[1772111894742,3.5881007,87.629,87.579,3.68303852]
[1772111895047,3.5881007,87.619,87.57,2.9999934]
[1772111895243,3.5881007,87.619,87.57,6.68303192]
[1772111895443,3.5881007,87.619,87.571,3.68303852]
[1772111896045,3.5881007,87.619,87.57,2.9999934]
[1772111896046,10.2719,87.615,87.572,3.68303852]
[1772111896245,13.8600007,87.615,87.572,3.68303852]
[1772111897050,13.8600007,87.615,87.576,10.2764]
[1772111897542,2.9999934,87.61,87.56,6.68303192]
[1772111897846,3.5881007,87.609,87.56,6.68303192]
[1772111898445,3.5881007,87.609,87.56,3.68303852]
[1772111898644,3.5881007,87.609,87.56,6.68303192]
[1772111899047,10.2734,87.603,87.562,10.278]
[1772111899346,13.8615007,87.603,87.562,10.278]
[1772111899747,3.5881007,87.602,87.562,10.278]
[1772111899951,3.5881007,87.598,87.554,10.2789]
[1772111900549,3.5881007,87.598,87.554,13.96193852]
[1772111900848,3.5881007,87.598,87.558,10.2785]
[1772111901640,3.5881007,87.598,87.563,10.2779]
[1772111901844,3.5881007,87.611,87.564,3.68303852]
[1772111902951,10.2726,87.609,87.567,10.2774]
[1772111903449,3.5881007,87.606,87.56,2.9999934]
[1772111903655,3.5881007,87.606,87.559,10.2784]
[1772111904348,8.77450073,87.631,87.541,3.68303852]
[1772111904349,3.5881007,87.588,87.541,3.68303852]
[1772111906154,3.5881007,87.588,87.548,10.2797]
[1772111906959,3.5881007,87.588,87.548,13.84609968]
[1772111907761,3.5881007,87.588,87.549,3.56639968]
[1772111907961,3.5881007,87.588,87.55,13.84579968]
[1772111911260,2.9999934,87.6,87.554,3.56639968]
[1772111911460,3.53814393,87.599,87.554,3.56639968]
[1772111912264,10.2745,87.593,87.554,3.56639968]
[1772111912475,2.9999934,87.59,87.554,3.56639968]
[1772111912861,3.53814393,87.589,87.547,10.2798]
[1772111913064,13.81344393,87.586,87.541,3.56639968]
[1772111913363,3.53814393,87.569,87.525,3.56639968]
[1772111913664,3.53814393,87.59,87.55,2.9999934]
[1772111913865,3.53814393,87.59,87.551,3.56639968]
[1772111914064,3.53814393,87.59,87.552,3.56639968]
[1772111914960,3.53814393,87.59,87.556,10.2787]
[1772111915563,3.53814393,87.59,87.552,3.56639968]
[1772111916865,10.275,87.589,87.552,3.56639968]
[1772111917262,3.88001941,87.579,87.531,10.2817]
[1772111917462,3.88001941,87.579,87.531,14.05679728]
[1772111918966,3.88001941,87.574,87.531,14.05679728]
[1772111919970,3.88001941,87.571,87.531,3.77509728]
[1772111920366,3.88001941,87.567,87.522,10.2827]
[1772111920566,3.88001941,87.567,87.523,3.77509728]
[1772111921070,10.2777,87.566,87.525,3.77509728]
[1772111921465,3.88001941,87.567,87.525,3.77509728]
[1772111923164,3.88001941,87.566,87.52,10.2829]
[1772111923372,3.88001941,87.566,87.52,14.05799728]
[1772111923665,3.88001941,87.549,87.502,3.77509728]
[1772111924268,10.2798,87.548,87.503,10.285]
[1772111924472,3.88001941,87.547,87.503,10.285]
[1772111924869,3.88001941,87.545,87.502,3.77509728]
[1772111928477,3.88001941,87.545,87.511,10.2841]
[1772111928677,10.2789,87.555,87.512,3.77509728]
[1772111928879,6.883917,87.57,87.521,3.77509728]
[1772111929378,3.88001941,87.569,87.521,3.77509728]
[1772111929566,3.88001941,87.567,87.526,10.2822]
[1772111929966,3.88001941,87.567,87.521,3.77509728]
[1772111930174,14.15911941,87.554,87.511,10.284]
[1772111930374,3.88001941,87.553,87.511,10.284]
[1772111930574,3.88001941,87.553,87.509,3.77509728]
[1772111931083,3.88001941,87.565,87.511,3.77509728]
[1772111931970,3.88001941,87.562,87.517,3.77509728]
[1772111932168,3.88001941,87.562,87.52,3.00389759]
[1772111932370,3.88001941,87.547,87.504,10.2848]
[1772111934083,3.88001941,87.545,87.504,10.2848]
[1772111934283,3.88001941,87.545,87.503,3.77509728]
[1772111934478,3.88001941,87.545,87.5,3.00389759]
[1772111934783,3.88001941,87.543,87.5,3.00389759]
[1772111934980,3.88001941,87.566,87.518,3.77509728]
[1772111935175,3.88001941,87.566,87.52,3.00389759]
[1772111935576,3.88001941,87.566,87.52,13.28689759]
[1772111935884,3.88001941,87.566,87.521,3.77509728]
[1772111936685,3.88001941,87.566,87.53,6.59003069]
[1772111937284,3.88001941,87.566,87.536,10.2811]
[1772111938578,3.76512251,87.591,87.547,3.5861331]
[1772111938782,3.76512251,87.591,87.551,3.5861331]
[1772111939879,3.76512251,87.591,87.551,13.8654331]
[1772111940080,3.76512251,87.591,87.552,3.5861331]
[1772111940480,3.76512251,87.605,87.558,3.5861331]
[1772111940776,3.76512251,87.605,87.561,3.5861331]
[1772111941890,3.76512251,87.605,87.564,10.2778]
[1772111942477,3.76512251,87.604,87.56,3.00389759]
[1772111942677,3.76512251,87.604,87.549,3.5861331]
[1772111942678,3.76512251,87.599,87.549,3.5861331]
[1772111942877,3.76512251,87.599,87.55,3.00389759]
[1772111943082,3.76512251,87.599,87.55,6.59003069]
[1772111943286,10.2741,87.596,87.554,10.279]
[1772111944784,3.76512251,87.599,87.557,3.5861331]
[1772111944988,22.52653437,87.633,87.516,20.5668]
[1772111944989,3.76512251,87.614,87.561,3.5861331]
[1772111945488,3.76512251,87.611,87.57,3.00389759]
[1772111946884,3.76512251,87.611,87.571,3.5861331]
[1772111947785,3.76512251,87.611,87.57,3.00389759]
[1772111947786,3.76512251,87.625,87.581,3.5861331]
[1772111948282,3.76512251,87.625,87.58,3.00389759]
[1772111948283,3.76512251,87.638,87.6,3.00389759]
[1772111948689,3.76512251,87.638,87.6,6.59003069]
[1772111948883,3.76512251,87.638,87.601,3.5861331]
[1772111949090,3.76512251,87.659,87.601,3.5861331]
[1772111949286,10.2685,87.644,87.602,10.2734]
[1772111949592,3.76512251,87.659,87.602,13.8595331]
[1772111950686,10.2684,87.645,87.602,13.8595331]
[1772111953395,3.76512251,87.648,87.556,20.5574]
[1772111953396,10.2673,87.654,87.615,3.5861331]
[1772111953797,3.76512251,87.679,87.63,3.00389759]
[1772111954901,10.2654,87.671,87.63,3.00389759]
[1772111955098,10.2654,87.671,87.63,6.59003069]
[1772111956703,3.76512251,87.669,87.611,3.5861331]
[1772111956900,6.7690201,87.66,87.611,3.5861331]
[1772111957101,3.76512251,87.659,87.611,3.5861331]
[1772111957395,20.5243,87.699,87.601,13.8595331]
[1772111957396,3.76512251,87.647,87.601,13.8595331]
[1772111957796,3.00389759,87.64,87.601,3.5861331]
[1772111958000,3.76512251,87.643,87.601,3.5861331]
[1772111959299,10.2688,87.642,87.601,3.5861331]
[1772111960505,3.76512251,87.633,87.589,10.2748]
[1772111961298,3.76512251,87.628,87.587,3.5861331]
[1772111961497,3.76512251,87.619,87.573,3.5861331]
[1772111962002,3.76512251,87.617,87.573,13.8628331]
[1772111962197,3.76512251,87.609,87.56,6.59003069]
[1772111962598,3.76512251,87.609,87.56,3.5861331]
[1772111963415,3.76512251,87.607,87.56,3.5861331]
[1772111963615,6.7690201,87.6,87.56,3.5861331]
[1772111964012,6.7690201,87.6,87.561,10.2782]
[1772111964209,3.76512251,87.6,87.561,10.2782]
[1772111965709,3.76512251,87.6,87.561,13.8643331]
[1772111966114,3.76512251,87.6,87.562,3.61406229]
[1772111968620,10.2727,87.608,87.564,3.61406229]
[1772111969510,3.64193046,87.607,87.568,3.61406229]
[1772111970916,3.64193046,87.607,87.571,10.2769]
[1772111971319,3.64193046,87.607,87.568,3.61406229]
[1772111971515,3.64193046,87.619,87.571,3.61406229]
[1772111973118,3.64193046,87.619,87.579,3.61406229]
[1772111974025,3.64193046,87.619,87.579,13.89006229]
[1772111974521,3.64193046,87.609,87.571,3.61406229]
[1772111975222,3.64193046,87.609,87.562,10.278]
[1772111975613,3.64193046,87.605,87.554,10.279]
[1772111976525,3.64193046,87.601,87.554,10.279]
[1772111977322,3.64193046,87.601,87.56,3.00229332]
[1772111978926,3.64649916,87.598,87.554,10.279]
[1772111979116,3.64649916,87.598,87.554,14.02009909]
[1772111980324,3.64649916,87.598,87.559,10.2784]
[1772111982620,3.64649916,87.594,87.555,3.74109909]
[1772111983931,10.2745,87.593,87.555,3.74109909]
[1772111984223,13.92099916,87.593,87.555,3.74109909]
[1772111985530,10.2748,87.59,87.555,3.74109909]
[1772111987131,3.64649916,87.592,87.557,10.2787]
[1772111988125,3.64649916,87.589,87.543,3.74109909]
[1772111988328,3.64649916,87.589,87.531,3.74109909]
[1772111988525,3.64649916,87.589,87.551,3.74109909]
[1772111988920,3.00229332,87.61,87.551,3.74109909]
[1772111989120,3.64649916,87.601,87.56,10.2783]
[1772111990137,3.64649916,87.601,87.566,3.74109909]
[1772111991135,3.64649916,87.601,87.568,10.2773]
[1772111991327,3.64649916,87.601,87.566,3.74109909]
[1772111993133,10.2736,87.6,87.566,3.74109909]
[1772111996633,3.64649916,87.601,87.568,10.2774]
[1772111996833,3.58834561,87.613,87.569,3.75504131]
[1772111997233,10.2724,87.611,87.574,10.2766]
[1772111999035,10.2724,87.611,87.578,10.2762]
[1772111999436,10.2724,87.611,87.578,14.03124131]
[1772111999936,3.58834561,87.613,87.58,10.2759]
[1772112000128,10.2716,87.617,87.581,3.75504131]
[1772112000334,3.58834561,87.637,87.581,3.75504131]
[1772112000531,10.2701,87.631,87.594,10.2743]
[1772112000731,3.58834561,87.63,87.569,3.75504131]
[1772112001030,3.58834561,87.63,87.546,20.5598]
[1772112001031,6.59063893,87.63,87.581,3.75504131]
[1772112001233,3.58834561,87.63,87.581,3.75504131]
[1772112001437,10.6023037,87.675,87.546,20.5598]
[1772112001438,3.58834561,87.642,87.593,3.75504131]
[1772112001638,3.58834561,87.642,87.601,3.75504131]
[1772112002033,10.2684,87.645,87.603,3.75504131]
[1772112003135,10.2688,87.641,87.603,3.75504131]
[1772112003334,3.58834561,87.639,87.59,6.75733463]
[1772112003732,10.2704,87.628,87.591,3.75504131]
[1772112003932,13.85874561,87.628,87.591,3.75504131]
[1772112006844,10.2695,87.636,87.591,3.75504131]
[1772112007947,10.2695,87.636,87.593,3.75504131]
[1772112008846,10.2695,87.636,87.596,3.75504131]
[1772112011049,13.85844561,87.631,87.596,3.75504131]
[1772112011748,3.58834561,87.63,87.596,3.75504131]
[1772112012449,10.2704,87.628,87.596,3.75504131]
[1772112014245,3.58834561,87.63,87.596,3.75504131]
[1772112016852,3.58834561,87.641,87.599,3.75504131]
[1772112017047,3.58834561,87.641,87.6,3.00229332]
[1772112017352,3.58834561,87.653,87.61,3.00229332]
[1772112017852,3.58834561,87.653,87.601,3.75504131]
[1772112019044,3.00229332,87.66,87.609,10.2725]
[1772112019045,3.58834561,87.651,87.609,10.2725]
[1772112020053,10.268,87.648,87.609,10.2725]
[1772112021146,13.85634561,87.648,87.609,10.2725]
[1772112022546,10.2685,87.645,87.609,10.2725]
[1772112022752,3.58834561,87.644,87.603,10.2733]
[1772112023949,3.58834561,87.641,87.603,10.2733]
[1772112024449,3.58834561,87.639,87.595,10.2742]
[1772112025554,10.2695,87.636,87.597,10.274]
[1772112025948,3.71917279,87.635,87.597,10.274]
[1772112027152,10.2697,87.634,87.597,10.274]
[1772112027350,3.00229332,87.63,87.582,3.53251603]
[1772112027551,3.71917279,87.629,87.582,3.53251603]
[1772112028157,3.71917279,87.629,87.59,3.53251603]
[1772112028852,3.71917279,87.629,87.592,10.2745]
[1772112029057,3.71917279,87.629,87.592,13.80701603]
[1772112029252,3.71917279,87.629,87.593,3.53251603]
[1772112031458,10.2704,87.628,87.593,3.53251603]
[1772112033260,3.71917279,87.629,87.594,10.2742]
[1772112036163,3.71917279,87.642,87.598,3.53251603]
[1772112036353,3.71917279,87.642,87.601,3.53251603]
[1772112037962,3.71917279,87.642,87.605,10.273]
[1772112038360,3.51923525,87.671,87.621,3.60229896]
[1772112038560,3.51923525,87.671,87.63,6.60459228]
[1772112039058,3.51923525,87.671,87.631,3.60229896]
[1772112039862,3.51923525,87.671,87.632,13.87209896]
[1772112040165,3.51923525,87.671,87.633,3.60229896]
[1772112040663,3.51923525,87.669,87.633,3.60229896]
[1772112041858,10.2659,87.667,87.633,3.60229896]
[1772112042460,3.51923525,87.669,87.633,3.60229896]
[1772112042853,3.51923525,87.689,87.641,3.60229896]
[1772112043063,21.33912986,87.733,87.579,34.24]
[1772112043064,3.51923525,87.716,87.671,3.60229896]
[1772112043566,3.51923525,87.716,87.68,2.99670761]
[1772112044161,3.51923525,87.716,87.675,10.2648]
[1772112044562,3.51923525,87.716,87.676,3.60229896]
[1772112044770,13.77843525,87.724,87.681,3.60229896]
[1772112045061,14.22608657,87.771,87.628,20.5405]
[1772112045062,10.258,87.734,87.691,3.60229896]
[1772112045467,3.51923525,87.738,87.692,3.60229896]
[1772112046870,10.2585,87.73,87.692,3.60229896]
[1772112048466,13.25520761,87.73,87.692,3.60229896]
[1772112050165,10.2585,87.73,87.692,3.60229896]
[1772112052874,13.77773525,87.73,87.692,3.60229896]
[1772112055871,3.51923525,87.73,87.692,3.60229896]
[1772112056170,10.2575,87.738,87.692,3.60229896]
[1772112056773,14.08125994,87.738,87.692,3.60229896]
[1772112057073,14.08125994,87.738,87.694,3.83324833]
[1772112057971,10.2583,87.732,87.694,3.83324833]
[1772112061374,10.259,87.725,87.694,3.83324833]
[1772112061573,3.82375994,87.724,87.67,2.99670761]
[1772112061781,3.82375994,87.719,87.667,3.83324833]
[1772112062781,3.82375994,87.71,87.667,3.83324833]
[1772112063882,3.82375994,87.71,87.67,3.83324833]
[1772112064476,10.2618,87.702,87.67,3.83324833]
[1772112064678,3.82375994,87.699,87.66,3.83324833]
[1772112065084,3.82375994,87.689,87.632,3.83324833]
[1772112065978,10.2643,87.68,87.637,10.2692]
[1772112066181,14.08805994,87.68,87.637,10.2692]
[1772112066380,3.82375994,87.679,87.632,3.83324833]
[1772112066680,3.82375994,87.676,87.632,3.83324833]
[1772112067985,3.82375994,87.676,87.634,3.83324833]
[1772112068576,3.82375994,87.676,87.635,10.2695]
[1772112068772,3.82375994,87.676,87.634,3.83324833]
[1772112069880,10.2652,87.673,87.634,3.83324833]
[1772112070377,14.08895994,87.673,87.634,3.83324833]
[1772112072574,2.99670761,87.68,87.634,3.83324833]
[1772112073882,14.08795994,87.681,87.636,3.83324833]
[1772112074977,14.08795994,87.681,87.639,14.10224833]
[1772112075184,3.82375994,87.68,87.64,2.99670761]
[1772112077079,3.82375994,87.68,87.639,14.10224833]
[1772112079986,3.82375994,87.678,87.639,14.10224833]
[1772112081483,3.82375994,87.678,87.639,10.269]
[1772112081692,10.2636,87.686,87.643,3.83324833]
[1772112081989,3.82375994,87.683,87.643,3.83324833]
[1772112082588,8.65083921,87.73,87.605,20.546]
[1772112082589,3.82375994,87.677,87.636,10.2693]
[1772112083187,3.82375994,87.672,87.636,10.2693]
[1772112083384,3.82375994,87.672,87.631,3.83324833]
[1772112084994,10.2653,87.671,87.631,3.83324833]
[1772112085195,10.2653,87.671,87.633,3.83324833]
[1772112086293,3.82375994,87.672,87.635,3.77254768]
[1772112086999,3.82375994,87.672,87.63,2.99670761]
[1772112087000,3.82375994,87.672,87.641,3.77254768]
[1772112087997,10.2654,87.671,87.641,3.77254768]
[1772112088297,3.49691295,87.67,87.633,10.2697]
[1772112088694,10.2656,87.669,87.63,6.76925529]
[1772112088899,13.76251295,87.669,87.63,6.76925529]
[1772112089094,3.49691295,87.668,87.63,3.77254768]
[1772112090002,10.266,87.665,87.63,3.77254768]
[1772112090796,3.49691295,87.661,87.63,3.77254768]
[1772112091002,3.49691295,87.661,87.62,2.99670761]
[1772112091701,3.49691295,87.661,87.621,3.77254768]
[1772112091900,10.2668,87.659,87.621,3.77254768]
[1772112092399,3.49691295,87.648,87.601,3.77254768]
[1772112093999,2.99670761,87.65,87.601,3.77254768]
[1772112094000,3.49691295,87.644,87.604,10.2731]
[1772112094397,3.49691295,87.644,87.601,3.77254768]
[1772112094707,5.13172043,87.691,87.589,3.77254768]
[1772112094708,3.49691295,87.629,87.589,3.77254768]
[1772112095096,3.49691295,87.646,87.591,3.77254768]
[1772112096002,3.49691295,87.643,87.597,3.77254768]
[1772112097101,3.49691295,87.643,87.599,10.2737]
[1772112097406,3.52286557,87.639,87.585,3.79611453]
[1772112097804,10.2703,87.629,87.587,14.07121453]
[1772112098005,10.2703,87.629,87.588,3.79611453]
[1772112098201,3.52286557,87.628,87.588,3.79611453]
[1772112098409,3.52286557,87.625,87.588,3.79611453]
[1772112099199,13.79376557,87.624,87.588,3.79611453]
[1772112099511,3.52286557,87.624,87.588,3.79611453]
[1772112100206,3.52286557,87.639,87.598,3.79611453]
[1772112100708,3.52286557,87.639,87.6,2.99670761]
[1772112101108,3.52286557,87.649,87.601,3.79611453]
[1772112101305,3.52286557,87.642,87.601,3.79611453]
[1772112102200,20.5286,87.68,87.59,2.99935828]
[1772112102201,3.52286557,87.639,87.59,2.99935828]
[1772112102400,3.52286557,87.629,87.584,3.79611453]
[1772112102711,3.52286557,87.624,87.584,3.79611453]
[1772112103908,10.271,87.623,87.584,3.79611453]
[1772112104107,13.79386557,87.623,87.584,3.79611453]
[1772112104310,3.52286557,87.623,87.585,10.2754]
[1772112107304,3.52286557,87.623,87.585,14.07151453]
[1772112109914,3.52286557,87.635,87.59,2.99935828]
[1772112110108,3.52286557,87.649,87.601,3.79611453]
[1772112110516,3.52286557,87.643,87.601,14.06951453]
[1772112112017,3.52286557,87.641,87.601,14.06951453]
[1772112114120,3.52286557,87.638,87.601,14.06951453]
[1772112115015,10.2696,87.635,87.601,14.06951453]
[1772112115913,10.2699,87.632,87.601,3.79611453]
[1772112116714,10.2699,87.632,87.594,10.2743]
[1772112116715,3.68491153,87.627,87.594,3.57328848]
[1772112119118,3.68491153,87.627,87.595,10.2742]
[1772112119318,3.68491153,87.636,87.596,3.57328848]
[1772112120618,13.95441153,87.635,87.597,10.2739]
[1772112120922,3.68491153,87.634,87.597,10.2739]
[1772112121322,10.2699,87.633,87.596,3.57328848]
[1772112121821,3.68491153,87.632,87.591,10.2747]
[1772112122021,3.68491153,87.629,87.585,3.57328848]
[1772112122214,3.68491153,87.619,87.573,3.57328848]
[1772112123920,3.68491153,87.619,87.575,3.57328848]
[1772112124925,3.68491153,87.619,87.578,10.2761]
[1772112127224,3.68491153,87.616,87.578,10.2761]
[1772112127629,3.68491153,87.616,87.575,3.57328848]
[1772112128219,3.68491153,87.616,87.546,350.44731028]
[1772112128220,3.68491153,87.609,87.55,3.57328848]
[1772112128523,3.68491153,87.612,87.571,3.57328848]
[1772112128923,2.99935828,87.61,87.571,3.57328848]
[1772112129123,3.68491153,87.609,87.571,3.57328848]
[1772112129921,13.95791153,87.606,87.571,3.57328848]
[1772112130529,3.68491153,87.606,87.571,3.57328848]
[1772112131930,10.2732,87.604,87.571,3.57328848]
[1772112132328,3.68491153,87.606,87.571,3.57328848]
[1772112133428,10.2732,87.604,87.571,3.57328848]
[1772112135919,10.63542126,87.657,87.546,329.88751028]
[1772112135920,3.68491153,87.592,87.553,3.57328848]
[1772112136125,3.68491153,87.603,87.561,3.57328848]
[1772112137133,3.68491153,87.614,87.574,3.57328848]
[1772112137817,3.68491153,87.614,87.576,3.57328848]
[1772112138020,3.68491153,87.629,87.576,3.57328848]
[1772112138222,3.68491153,87.629,87.581,3.57328848]
[1772112138824,3.68491153,87.619,87.566,3.57328848]
[1772112139023,3.68491153,87.609,87.555,3.57328848]
[1772112139533,3.68491153,87.599,87.555,3.57328848]
[1772112140331,3.68491153,87.599,87.562,10.2781]
[1772112142435,3.68491153,87.597,87.546,329.88751028]
[1772112142635,3.68491153,87.589,87.546,329.88751028]
[1772112143231,3.68491153,87.589,87.547,3.57328848]
[1772112143831,3.68491153,87.589,87.546,329.88751028]
[1772112144032,3.68491153,87.581,87.546,329.88751028]
[1772112144931,2.99935828,87.59,87.546,329.88751028]
[1772112144932,13.96111153,87.579,87.546,329.88751028]
[1772112145430,13.96111153,87.579,87.535,3.57328848]
[1772112145431,3.68491153,87.576,87.535,3.57328848]
[1772112145626,3.68491153,87.576,87.521,3.57328848]
[1772112147131,3.75641175,87.573,87.53,2.99935828]
[1772112148036,3.75641175,87.586,87.541,3.50977059]
[1772112148337,3.75641175,87.598,87.551,3.50977059]
[1772112148637,3.75641175,87.591,87.54,2.99935828]
[1772112148837,2.99935828,87.59,87.54,2.99935828]
[1772112149034,3.75641175,87.589,87.54,2.99935828]
[1772112149331,3.75641175,87.589,87.541,10.2805]
[1772112149543,3.75641175,87.589,87.551,3.50977059]
[1772112153829,3.75641175,87.602,87.552,3.50977059]
[1772112155140,3.75641175,87.6,87.553,10.279]
[1772112155342,3.75641175,87.599,87.553,10.279]
[1772112155941,3.75641175,87.594,87.553,10.279]
[1772112156339,3.75641175,87.594,87.539,3.50977059]
[1772112156642,10.2768,87.573,87.539,3.50977059]
[1772112158233,6.63452028,87.618,87.539,3.50977059]
[1772112158443,6.63452028,87.63,87.58,2.99935828]
[1772112158642,6.63452028,87.629,87.57,2.99935828]
[1772112159238,6.63452028,87.619,87.56,2.99935828]
[1772112159545,6.63452028,87.599,87.55,2.99935828]
[1772112159937,6.63905985,87.597,87.55,2.99935828]
[1772112161238,6.63905985,87.597,87.55,3.00279046]
[1772112161443,6.63905985,87.597,87.54,3.00279046]
[1772112162145,6.66735733,87.595,87.54,3.00279046]
[1772112162346,6.66735733,87.595,87.55,3.00279046]
[1772112164446,6.66896455,87.591,87.535,10.2811]
[1772112164642,6.66896455,87.579,87.524,10.2825]
[1772112164841,6.66896455,87.579,87.53,3.00279046]
[1772112166240,6.66896455,87.579,87.52,3.00279046]